fUSD/lending_fUSD_20251113
["ID","MTS","AMOUNT","RATE_DAILY","PERIOD"]
[393844445,1763035832532,-71509.31562513,0.00038136,4]
[393844446,1763035832542,-500.0,0.00038145,15]
[393844447,1763035832551,-500.0,0.00038145,2]
[393844448,1763035832561,-177.54630722,0.00038145,7]
[393844449,1763035832570,-500.0,0.00038145,15]
[393844450,1763035832580,-364.99745327,0.00038145,15]
[393844451,1763035832589,-500.0,0.00038145,15]
[393844452,1763035832598,-500.0,0.00038145,15]
[393844453,1763035832608,-500.0,0.00038145,15]
[393844454,1763035832617,-500.0,0.00038145,15]
[393844455,1763035832626,-500.0,0.00038145,15]
[393844456,1763035832635,-500.0,0.00038145,15]
[393844457,1763035832645,-500.0,0.00038145,15]
[393844458,1763035832654,-500.0,0.00038145,15]
[393844459,1763035832663,-500.0,0.00038145,15]
[393844460,1763035832672,-500.0,0.00038145,15]
[393844461,1763035832682,-500.0,0.00038145,15]
[393844462,1763035832692,-500.0,0.00038145,15]
[393844463,1763035832701,-500.0,0.00038145,15]
[393844464,1763035832711,-500.0,0.00038145,15]
[393844465,1763035832720,-500.0,0.00038145,15]
[393844466,1763035832729,-500.0,0.00038145,15]
[393844467,1763035832739,-170.95053043,0.00038145,15]
[393844468,1763035832748,-500.0,0.00038145,15]
[393844469,1763035832757,-500.0,0.00038145,15]
[393844470,1763035832766,-500.0,0.00038145,15]
[393844471,1763035832775,-500.0,0.00038145,15]
[393844472,1763035832785,-500.0,0.00038145,15]
[393844473,1763035832794,-500.0,0.00038145,15]
[393844474,1763035832803,-500.0,0.00038145,15]
[393844475,1763035832813,-500.0,0.00038145,2]
[393844476,1763035832823,-500.0,0.00038145,20]
[393844477,1763035832832,-500.0,0.00038145,20]
[393844478,1763035832841,-4852.1622935,0.00038145,2]
[393844479,1763035832851,-500.0,0.00038145,20]
[393844480,1763035832861,-500.0,0.00038145,7]
[393844481,1763035832874,-500.0,0.00038145,7]
[393844482,1763035832883,-500.0,0.00038145,20]
[393844483,1763035832892,-638.95883668,0.00038145,20]
[393844484,1763035832902,-500.0,0.00038145,20]
[393844485,1763035832912,-507.78092294,0.00038145,20]
[393844486,1763035832922,-618.55,0.00038145,14]
[393844487,1763035832931,-5509.5755,0.00038146,2]
[393844488,1763035832940,-240888.02697269,0.00038146,2]
[393844489,1763035832954,-51673.3706912,0.00038146,2]
[393844490,1763035832965,-60635.43907661,0.00038146,2]
[393844491,1763035832976,-66803.1632595,0.00038146,2]
[393844492,1763035832986,-500.0,0.00038146,30]
[393844493,1763035832995,-1000.0,0.00038156,2]
[393844494,1763035833005,-500.0,0.00038173,5]
[393844495,1763035833014,-235.09790462,0.00038177,2]
[393844496,1763035833023,-9258.61805318,0.00038242,4]
[393844497,1763035833032,-16291.6576013,0.00038251,2]
[393844498,1763035833042,-268.64065804,0.00038256,13]
[393844499,1763035833051,-9258.61805318,0.00038315,4]
[393844500,1763035833060,-9258.61805318,0.0003832,4]
[393844501,1763035833069,-27775.8541595,0.00038326,4]
[393844502,1763035833078,-2674.03185815,0.0003833,2]
[393844503,1763035833088,-414.52972794,0.00038331,2]
[393844504,1763035833099,-122.81276727,0.00038331,2]
[393844505,1763035833108,-397.13439131,0.00038335,20]
[393844506,1763035833127,-62.46045644,0.00038335,20]
[393844507,1763035833136,-500.0,0.00038335,7]
[393844508,1763035833145,-1751.14231716,0.00038336,4]
[393844511,1763035838027,-19980.72801104,0.00038336,4]
[393844512,1763035838041,-349.615,0.00038336,4]
[393844557,1763035839821,-19942.59276993,0.00038336,4]
[393844594,1763035845851,-906.0,0.00037791,2]
[393844595,1763035845861,-193.77415659,0.00038336,4]
[393844605,1763036719667,619.16981503,9e-05,2]
[393844606,1763036725527,1019.97550848,0.000108,2]
[393844608,1763036797886,874.61282533,0.0002,30]
[393844609,1763036894033,1917.08457606,0.0001,2]
[393844610,1763036905711,2714.49884901,0.0001,2]
[393844613,1763036915833,3729.28125142,0.0001,2]
[393844614,1763036915855,4564.03543074,0.0001,2]
[393844615,1763036915917,5435.97456926,0.00015,2]
[393844616,1763036915940,6396.42513278,0.00015,2]
[393844617,1763036918976,1343.7809378,0.00013699,2]
[393844629,1763037031793,-325.0,0.00017973,2]
[393844632,1763037031803,-191.10043004,0.0001799,2]
[393844635,1763037031812,-191.10043004,0.0001799,2]
[393844637,1763037031822,-191.10043004,0.0001799,2]
[393844639,1763037031832,-164.0,0.00017998,2]
[393844641,1763037031842,-65.90115682,0.00017998,2]
[393844643,1763037031861,-509.33266233,0.00017998,2]
[393844650,1763037031961,-400.32646289,0.00017998,2]
[393844669,1763037037857,-224.43971796,0.00017998,2]
[393844670,1763037037870,-300.0,0.00017998,2]
[393844671,1763037037885,-250.0,0.00017999,2]
[393844672,1763037037902,-300.0,0.00017999,2]
[393844673,1763037037915,-300.0,0.00017999,2]
[393844674,1763037037927,-541.09574014,0.00017999,2]
[393844675,1763037037939,-492.80434855,0.00017999,2]
[393844676,1763037037952,-500.0,0.00017999,2]
[393844677,1763037037965,-227.50952504,0.00017999,2]
[393844678,1763037037978,-500.0,0.00017999,2]
[393844679,1763037037990,-468.13418049,0.00017999,2]
[393844680,1763037038000,-332.84386112,0.00017999,2]
[393844681,1763037038011,-500.0,0.00017999,2]
[393844682,1763037038027,-500.0,0.00017999,2]
[393844683,1763037038038,-500.0,0.00017999,2]
[393844684,1763037038051,-500.35201657,0.00017999,2]
[393844685,1763037038064,-500.0,0.00017999,2]
[393844686,1763037038079,-500.0,0.00017999,2]
[393844687,1763037038089,-500.0,0.00017999,2]
[393844688,1763037038100,-500.0,0.00017999,2]
[393844689,1763037038110,-500.0,0.00017999,2]
[393844690,1763037038120,-500.0,0.00017999,2]
[393844691,1763037038130,-500.0,0.00017999,2]
[393844692,1763037038141,-322.43932839,0.00017999,2]
[393844693,1763037038152,-630.87610608,0.00017999,2]
[393844694,1763037038163,-500.0,0.00017999,2]
[393844695,1763037038177,-500.0,0.00017999,2]
[393844696,1763037038194,-500.0,0.00017999,2]
[393844697,1763037038210,-500.0,0.00017999,2]
[393844698,1763037038222,-500.0,0.00017999,2]
[393844699,1763037038234,-500.0,0.00017999,2]
[393844700,1763037038245,-500.0,0.00017999,2]
[393844701,1763037038257,-500.0,0.00017999,2]
[393844702,1763037038268,-500.0,0.00017999,2]
[393844703,1763037038279,-500.0,0.00017999,2]
[393844704,1763037038290,-500.0,0.00017999,2]
[393844705,1763037038302,-500.0,0.00017999,2]
[393844706,1763037038313,-500.0,0.00017999,2]
[393844707,1763037038325,-500.0,0.00017999,2]
[393844708,1763037038335,-500.0,0.00017999,2]
[393844709,1763037038346,-500.0,0.00017999,2]
[393844710,1763037038357,-167.09505304,0.00017999,2]
[393844711,1763037038373,-500.0,0.00017999,2]
[393844712,1763037038384,-500.0,0.00017999,2]
[393844713,1763037038396,-185.10121623,0.00017999,2]
[393844714,1763037038407,-533.27445965,0.00017999,2]
[393844715,1763037038418,-500.0,0.00017999,2]
[393844716,1763037038429,-500.0,0.00017999,2]
[393844717,1763037038440,-500.0,0.00017999,2]
[393844718,1763037038452,-500.0,0.00017999,2]
[393844719,1763037038462,-500.0,0.00017999,2]
[393844720,1763037038474,-5372914.41602247,0.00018,2]
[393844721,1763037038506,-302.64238328,0.00018,2]
[393844722,1763037038524,-6779.41002549,0.00018,2]
[393844723,1763037038538,-56830.82021669,0.00018,2]
[393844724,1763037040166,-134396.2349718,0.00018,2]
[393844901,1763037042983,-346.4546635,0.00018,2]
[393844902,1763037043062,-848.22670457,0.00018,2]
[393844903,1763037043205,-7284.28273277,0.00018,2]
[393844918,1763037093072,198.599,0.0001764,2]
[393844919,1763037152542,63.35653024,0.00017919,2]
[393844920,1763037152570,150.411,0.00017919,2]
[393844921,1763037152597,574.0,0.00017919,2]
[393844922,1763037152624,418.49956207,0.00017919,2]
[393844923,1763037152651,196.06,0.00017919,2]
[393844924,1763037152898,225.73118361,0.00017919,2]
[393844925,1763037152926,276.16657451,0.00017919,2]
[393844926,1763037152952,229.31058377,0.00017919,2]
[393844927,1763037152984,470.15457452,0.00017919,2]
[393844928,1763037153011,192.48059984,0.00017919,2]
[393844931,1763038167113,-200.0,0.00017573,2]
[393844932,1763038167134,-202.10593952,0.00017584,2]
[393844933,1763038167154,-500.0,0.00017614,2]
[393844934,1763038167174,-150.92577582,0.00017653,2]
[393844935,1763038167195,-250.0,0.00017653,2]
[393844936,1763038167216,-195.0,0.00017728,2]
[393844937,1763038167239,-162.45105664,0.00017799,2]
[393844938,1763038167260,-149.43435845,0.00017819,2]
[393844947,1763038232076,-727.65809693,0.000178,2]
[393844948,1763038232088,-2319.43805384,0.000178,2]
[393844949,1763038232098,-350.56564155,0.00017819,2]
[393844950,1763038232108,-250.0,0.00017858,2]
[393844951,1763038232118,-150.92577582,0.00017898,2]
[393844952,1763038232127,-166.66,0.00017899,2]
[393844953,1763038232137,-150.92577582,0.00017899,2]
[393844954,1763038232146,-1200.0,0.00017899,2]
[393844955,1763038232156,-300.0,0.00017899,2]
[393844956,1763038232165,-1199.42389517,0.00017899,2]
[393844957,1763038232176,-0.57610483,0.00017899,2]
[393844958,1763038232185,-219.58489894,0.000179,2]
[393844959,1763038232194,-162.45105664,0.000179,2]
[393844960,1763038232203,-115.2911804,0.000179,2]
[393844961,1763038232221,-955.04341264,0.000179,2]
[393844962,1763038232238,-589.41127401,0.000179,2]
[393844963,1763038232257,-654.99999995,0.000179,2]
[393844975,1763038238063,-4859.49129856,0.000179,2]
[393844976,1763038238073,-537.28131608,0.000179,2]
[393844977,1763038238082,-158.879,0.00017972,2]
[393844978,1763038238092,-405.0,0.00017972,2]
[393844979,1763038238102,-2629.9415,0.00017973,2]
[393844980,1763038238111,-500.81946819,0.00017973,2]
[393844981,1763038238121,-383.58999883,0.00017973,2]
[393844982,1763038238132,-116.41000117,0.00017973,2]
[393844983,1763038238142,-500.0,0.00017973,2]
[393844984,1763038238152,-500.0,0.00017973,2]
[393844985,1763038238162,-500.0,0.00017973,2]
[393844986,1763038238172,-500.0,0.00017973,2]
[393844987,1763038238182,-173.73227944,0.00017973,2]
[393844988,1763038238202,-3.50730941,0.00017973,2]
[393844989,1763038238215,-326.74106052,0.00017973,2]
[393844990,1763038238227,-170.21491719,0.00017973,2]
[393844991,1763038238238,-500.0,0.00017973,2]
[393844992,1763038238247,-131.35398957,0.00017973,2]
[393844999,1763038240279,-91.56027939,0.00017973,2]
[393845000,1763038240289,-500.0,0.00017973,2]
[393845001,1763038240300,-500.0,0.00017973,2]
[393845002,1763038240310,-308.43972061,0.00017973,2]
[393845003,1763038240392,-192.15963336,0.00017973,2]
[393845004,1763038240401,-500.52944315,0.00017973,2]
[393845005,1763038240411,-530.33053363,0.00017973,2]
[393845006,1763038240420,-500.0,0.00017973,2]
[393845007,1763038240430,-500.0,0.00017973,2]
[393845008,1763038240440,-427.26831172,0.00017973,2]
[393845009,1763038240450,-500.0,0.00017973,2]
[393845010,1763038240459,-500.0,0.00017973,2]
[393845011,1763038240467,-500.0,0.00017973,2]
[393845012,1763038240476,-292.07745313,0.00017973,2]
[393845013,1763038240485,-500.0,0.00017973,2]
[393845014,1763038240495,-500.0,0.00017973,2]
[393845015,1763038240504,-274.63962843,0.00017973,2]
[393845016,1763038240514,-500.0,0.00017973,2]
[393845017,1763038240524,-164.27622895,0.00017973,2]
[393845018,1763038240534,-500.0,0.00017973,2]
[393845019,1763038240544,-500.0,0.00017973,2]
[393845020,1763038240554,-500.0,0.00017982,2]
[393845021,1763038240563,-1470.87,0.00017989,2]
[393845022,1763038240573,-151.0,0.00017989,2]
[393845023,1763038240583,-151.0,0.00017989,2]
[393845024,1763038240593,-151.0,0.00017989,2]
[393845025,1763038240603,-151.0,0.00017989,2]
[393845026,1763038240619,-151.0,0.00017989,2]
[393845027,1763038240629,-151.0,0.00017989,2]
[393845028,1763038240640,-151.0,0.00017989,2]
[393845029,1763038240650,-151.0,0.00017989,2]
[393845030,1763038240662,-151.0,0.00017989,2]
[393845031,1763038240673,-151.0,0.00017989,2]
[393845032,1763038240683,-151.0,0.00017989,2]
[393845033,1763038240692,-151.0,0.00017989,2]
[393845034,1763038240702,-151.0,0.00017989,2]
[393845035,1763038240712,-151.0,0.00017989,2]
[393845036,1763038240721,-151.0,0.00017989,2]
[393845037,1763038240731,-151.0,0.00017989,2]
[393845038,1763038240741,-151.0,0.00017989,2]
[393845039,1763038240750,-151.0,0.00017989,2]
[393845040,1763038240760,-151.0,0.00017989,2]
[393845041,1763038240770,-151.0,0.00017989,2]
[393845042,1763038240780,-151.0,0.00017989,2]
[393845043,1763038240790,-151.0,0.00017989,2]
[393845044,1763038240803,-257.54438633,0.00017989,2]
[393845045,1763038240813,-151.0,0.00017989,2]
[393845046,1763038240823,-151.0,0.00017989,2]
[393845047,1763038240832,-151.0,0.00017989,2]
[393845048,1763038240845,-151.0,0.00017989,2]
[393845049,1763038240854,-1005.09466175,0.00017999,2]
[393845050,1763038240866,-482.53721792,0.00017999,2]
[393845051,1763038240877,-500.0,0.00017999,2]
[393845052,1763038240886,-500.0,0.00017999,2]
[393845053,1763038240895,-300.0,0.00017999,2]
[393845054,1763038240904,-631.36940064,0.00017999,2]
[393845055,1763038240915,-516.31305318,0.00017999,2]
[393845056,1763038240924,-500.0,0.00017999,2]
[393845057,1763038240933,-500.0,0.00017999,2]
[393845058,1763038240944,-500.0,0.00017999,2]
[393845059,1763038240954,-500.0,0.00017999,2]
[393845060,1763038240963,-500.0,0.00017999,2]
[393845061,1763038240973,-300.0,0.00017999,2]
[393845062,1763038240983,-500.0,0.00017999,2]
[393845063,1763038240994,-500.0,0.00017999,2]
[393845064,1763038241009,-500.0,0.00017999,2]
[393845065,1763038241020,-500.0,0.00017999,2]
[393845066,1763038241030,-500.0,0.00017999,2]
[393845067,1763038241041,-512.96823338,0.00017999,2]
[393845068,1763038241050,-500.0,0.00017999,2]
[393845069,1763038241060,-500.0,0.00017999,2]
[393845070,1763038241070,-500.0,0.00017999,2]
[393845071,1763038241079,-500.0,0.00017999,2]
[393845072,1763038241088,-204.30571111,0.00017999,2]
[393845073,1763038241098,-500.0,0.00017999,2]
[393845074,1763038241107,-500.0,0.00017999,2]
[393845075,1763038241117,-500.0,0.00017999,2]
[393845076,1763038241127,-500.0,0.00017999,2]
[393845077,1763038241137,-513.33825688,0.00017999,2]
[393845078,1763038241147,-500.0,0.00017999,2]
[393845079,1763038241157,-500.0,0.00017999,2]
[393845080,1763038241166,-500.0,0.00017999,2]
[393845081,1763038241176,-500.0,0.00017999,2]
[393845082,1763038241186,-500.0,0.00017999,2]
[393845083,1763038241195,-500.0,0.00017999,2]
[393845084,1763038241205,-500.0,0.00017999,2]
[393845085,1763038241214,-500.0,0.00017999,2]
[393845086,1763038241241,-500.0,0.00017999,2]
[393845087,1763038241254,-500.0,0.00017999,2]
[393845088,1763038241264,-500.0,0.00017999,2]
[393845089,1763038241274,-500.0,0.00017999,2]
[393845090,1763038241284,-500.0,0.00017999,2]
[393845091,1763038241294,-500.0,0.00017999,2]
[393845092,1763038241303,-474.53389535,0.00017999,2]
[393845093,1763038241313,-500.0,0.00017999,2]
[393845094,1763038241322,-500.0,0.00017999,2]
[393845095,1763038241332,-500.0,0.00017999,2]
[393845096,1763038241342,-500.0,0.00017999,2]
[393845097,1763038241351,-500.0,0.00017999,2]
[393845098,1763038241361,-500.0,0.00017999,2]
[393845099,1763038241371,-500.0,0.00017999,2]
[393845100,1763038241381,-500.0,0.00017999,2]
[393845101,1763038241390,-500.0,0.00017999,2]
[393845102,1763038241400,-500.0,0.00017999,2]
[393845103,1763038241410,-500.0,0.00017999,2]
[393845104,1763038241420,-500.0,0.00017999,2]
[393845105,1763038241430,-500.0,0.00017999,2]
[393845106,1763038241440,-500.0,0.00017999,2]
[393845107,1763038241450,-500.0,0.00017999,2]
[393845108,1763038241461,-500.0,0.00017999,2]
[393845109,1763038241470,-500.0,0.00017999,2]
[393845110,1763038241479,-500.0,0.00017999,2]
[393845111,1763038241489,-500.0,0.00017999,2]
[393845112,1763038241498,-500.0,0.00017999,2]
[393845113,1763038241508,-500.0,0.00017999,2]
[393845114,1763038241518,-444.83429482,0.00017999,2]
[393845115,1763038241527,-500.0,0.00017999,2]
[393845116,1763038241536,-500.0,0.00017999,2]
[393845117,1763038241546,-500.0,0.00017999,2]
[393845118,1763038241556,-500.0,0.00017999,2]
[393845119,1763038241565,-500.0,0.00017999,2]
[393845120,1763038241575,-500.0,0.00017999,2]
[393845121,1763038241585,-235.12646083,0.00017999,2]
[393845122,1763038241596,-500.0,0.00017999,2]
[393845123,1763038241606,-400.9860481,0.00017999,2]
[393845124,1763038241615,-500.0,0.00017999,2]
[393845125,1763038241625,-500.0,0.00017999,2]
[393845126,1763038241635,-236.76401179,0.00017999,2]
[393845127,1763038241645,-202.49325871,0.00017999,2]
[393845128,1763038241655,-23501.62345416,0.00018,2]
[393845147,1763038243202,-2246.56024518,0.00018,2]
[393845153,1763038945680,298.5,0.00013699,2]
[393845155,1763039002771,-150.32,0.0001757,2]
[393845156,1763039002793,-156.27506628,0.00017697,2]
[393845157,1763039002814,-222.11642815,0.00017766,2]
[393845158,1763039002835,-160.0,0.00017797,2]
[393845159,1763039002857,-173.83016709,0.00017798,2]
[393845160,1763039002878,-1000.0,0.000178,2]
[393845161,1763039002903,-1189.62454994,0.0001783,2]
[393845162,1763039002925,-1200.0,0.00017898,2]
[393845163,1763039002948,-1200.0,0.00017898,2]
[393845164,1763039002971,-603.29,0.00017898,2]
[393845165,1763039002992,-300.0,0.00017899,2]
[393845166,1763039003015,-300.0,0.00017899,2]
[393845167,1763039003038,-6456.81344904,0.000179,2]
[393845168,1763039003061,-174.42131315,0.000179,2]
[393845169,1763039003090,-215.39794287,0.000179,2]
[393845170,1763039003113,-999.0,0.00017913,3]
[393845171,1763039003140,-500.0,0.00017973,2]
[393845172,1763039003166,-500.0,0.00017973,2]
[393845173,1763039003188,-581.24442432,0.00017973,2]
[393845174,1763039003211,-500.96983964,0.00017973,2]
[393845175,1763039003237,-500.0,0.00017973,2]
[393845176,1763039003260,-405.90836484,0.00017973,2]
[393845177,1763039003283,-500.0,0.00017973,2]
[393845178,1763039003304,-502.53995618,0.00017973,2]
[393845179,1763039003327,-500.0,0.00017973,2]
[393845180,1763039003350,-500.0,0.00017973,2]
[393845181,1763039003372,-505.39261707,0.00017973,2]
[393845182,1763039003395,-500.0,0.00017973,2]
[393845183,1763039003417,-579.77410889,0.00017973,2]
[393845184,1763039003444,-500.0,0.00017973,2]
[393845185,1763039003699,-500.0,0.00017973,2]
[393845186,1763039003727,-500.0,0.00017973,2]
[393845187,1763039003750,-500.0,0.00017973,2]
[393845188,1763039003776,-500.0,0.00017973,2]
[393845189,1763039003799,-500.0,0.00017973,2]
[393845190,1763039003824,-500.0,0.00017973,2]
[393845191,1763039003846,-500.0,0.00017973,2]
[393845192,1763039003868,-500.0,0.00017973,2]
[393845193,1763039003891,-1348.29,0.00017973,2]
[393845194,1763039003913,-1153.89,0.00017975,2]
[393845195,1763039003937,-158.88,0.00017975,2]
[393845196,1763039003962,-151.0,0.00017989,2]
[393845197,1763039003984,-151.0,0.00017989,2]
[393845198,1763039004011,-151.0,0.00017989,2]
[393845199,1763039004034,-151.0,0.00017989,2]
[393845200,1763039004058,-151.0,0.00017989,2]
[393845201,1763039004087,-151.0,0.00017989,2]
[393845202,1763039004112,-151.0,0.00017989,2]
[393845203,1763039004134,-151.0,0.00017989,2]
[393845204,1763039004160,-151.0,0.00017989,2]
[393845205,1763039004183,-151.0,0.00017989,2]
[393845206,1763039004208,-151.0,0.00017989,2]
[393845207,1763039004231,-151.0,0.00017989,2]
[393845208,1763039004255,-151.0,0.00017989,2]
[393845209,1763039004277,-151.0,0.00017989,2]
[393845210,1763039004301,-151.0,0.00017989,2]
[393845211,1763039004322,-151.0,0.00017989,2]
[393845212,1763039004345,-151.0,0.00017989,2]
[393845213,1763039004369,-151.0,0.00017989,2]
[393845214,1763039004394,-151.0,0.00017989,2]
[393845215,1763039004418,-151.0,0.00017989,2]
[393845216,1763039004444,-151.0,0.00017989,2]
[393845217,1763039004478,-151.0,0.00017989,2]
[393845218,1763039004506,-151.0,0.00017989,2]
[393845219,1763039004534,-151.0,0.00017989,2]
[393845220,1763039004559,-151.0,0.00017989,2]
[393845221,1763039004582,-151.0,0.00017989,2]
[393845222,1763039004606,-151.0,0.00017989,2]
[393845223,1763039004629,-151.0,0.00017989,2]
[393845224,1763039004652,-151.0,0.00017989,2]
[393845225,1763039004674,-151.0,0.00017989,2]
[393845226,1763039004697,-151.0,0.00017989,2]
[393845227,1763039004721,-151.0,0.00017989,2]
[393845228,1763039004743,-151.0,0.00017989,2]
[393845229,1763039004767,-151.0,0.00017989,2]
[393845230,1763039004790,-151.0,0.00017989,2]
[393845231,1763039004812,-434.7518673,0.00017999,2]
[393845232,1763039004834,-500.0,0.00017999,2]
[393845233,1763039004856,-500.0,0.00017999,2]
[393845234,1763039004878,-500.0,0.00017999,2]
[393845235,1763039004907,-500.0,0.00017999,2]
[393845236,1763039004933,-586.97126714,0.00017999,2]
[393845237,1763039004956,-63506.2986381,0.00018,2]
[393845238,1763039007721,-100000.0,0.00018,2]
[393845239,1763039008286,-100000.0,0.00018,2]
[393845240,1763039008821,-100000.0,0.00018,2]
[393845241,1763039009368,-100000.0,0.00018,2]
[393845242,1763039009954,-100000.0,0.00018,2]
[393845244,1763039275462,-494.7822,0.0001782,2]
[393845245,1763039275484,-300.0,0.00017899,2]
[393845246,1763039275506,-1200.0,0.00017899,2]
[393845247,1763039275527,-300.0,0.00017899,2]
[393845248,1763039275548,-253.0,0.00017899,2]
[393845249,1763039275570,-4725.94681669,0.000179,2]
[393845250,1763039275593,-176.47500351,0.000179,2]
[393845251,1763039275621,-169.00794124,0.000179,2]
[393845252,1763039275650,-6000.48552506,0.000179,2]
[393845253,1763039275672,-212.38470961,0.000179,2]
[393845254,1763039275694,-228.14650797,0.00017973,2]
[393845255,1763039275716,-500.96249559,0.00017973,2]
[393845256,1763039275739,-171.79901375,0.00017973,2]
[393845257,1763039275761,-500.0,0.00017973,2]
[393845258,1763039275783,-500.0,0.00017973,2]
[393845259,1763039275805,-500.0,0.00017973,2]
[393845260,1763039275828,-500.0,0.00017973,2]
[393845261,1763039275850,-500.0,0.00017973,2]
[393845262,1763039275873,-500.0,0.00017973,2]
[393845263,1763039275895,-503.86217753,0.00017973,2]
[393845264,1763039275916,-500.0,0.00017973,2]
[393845265,1763039275941,-721263.14760905,0.00018,2]
[393845266,1763039276180,157.16,9.849e-05,2]
[393845267,1763039276389,157.16,0.00010637,2]
[393845268,1763039276589,157.16,0.00011426,2]
[393845269,1763039276987,157.16,0.00012214,2]
[393845270,1763039277392,157.16,0.00013003,2]
[393845271,1763039277865,157.16,0.00013792,2]
[393845272,1763039278357,157.16,0.0001458,2]
[393845273,1763039278390,157.16,0.00015369,2]
[393845274,1763039278526,157.16,0.00016157,2]
[393845275,1763039278749,157.16,0.00016946,2]
[393845276,1763039313514,169.98,0.00030137,120]
[393845352,1763039368485,-290862.24573202,0.00040693,30]
[393845353,1763039368521,-15006.86527367,0.00040693,30]
[393845354,1763039368555,-49857.2340052,0.00040693,30]
[393845355,1763039368592,-11255.51732499,0.00040693,30]
[393845356,1763039368630,-729.61996631,0.00040693,120]
[393845357,1763039368666,-44221.83704913,0.00040693,30]
[393845358,1763039368702,-1000.0,0.00040693,60]
[393845359,1763039368739,-1000.0,0.00040693,60]
[393845360,1763039368774,-1000.0,0.00040693,60]
[393845361,1763039368809,-1000.0,0.00040693,60]
[393845362,1763039368847,-1000.0,0.00040693,120]
[393845363,1763039368883,-1000.0,0.00040693,30]
[393845364,1763039368922,-890.95560578,0.00040693,120]
[393845365,1763039368959,-309.0,0.00040693,120]
[393845366,1763039368996,-222.0,0.00040693,50]
[393845367,1763039369034,-40914.71,0.00040693,60]
[393845368,1763039369070,-615.50511582,0.00040693,120]
[393845369,1763039369106,-9070.0,0.00040693,30]
[393845370,1763039369147,-493.27378854,0.00040693,120]
[393845371,1763039369188,-201.43220583,0.00040693,30]
[393845372,1763039369228,-10000.0,0.00040693,90]
[393845373,1763039369266,-1094.0,0.00040693,30]
[393845374,1763039369304,-1094.0,0.00040693,30]
[393845375,1763039369339,-1094.0,0.00040693,30]
[393845376,1763039369375,-1094.0,0.00040693,30]
[393845377,1763039369412,-1094.0,0.00040693,30]
[393845378,1763039369451,-302.00714478,0.00040693,120]
[393845379,1763039380029,500.0,0.00040693,30]
[393845388,1763039432258,-500.0,0.000176,6]
[393845390,1763039432267,-416.80737513,0.000177,6]
[393845391,1763039432280,-583.19262487,0.000177,6]
[393845392,1763039432289,-157.16,0.00017734,2]
[393845393,1763039432302,-1500.0,0.000178,6]
[393845394,1763039432312,-356.55277894,0.000179,6]
[393845395,1763039432328,-1643.44722106,0.000179,6]
[393845396,1763039432338,-167.02751431,0.000179,2]
[393845397,1763039432348,-242.94486206,0.000179,2]
[393845398,1763039432358,-213.18546546,0.000179,2]
[393845399,1763039432367,-5651.49202161,0.000179,2]
[393845400,1763039432377,-609.0,0.00017972,2]
[393845401,1763039432386,-606.98844194,0.00017973,2]
[393845402,1763039432397,-152.06591262,0.00017973,2]
[393845403,1763039432408,-500.0,0.00017973,2]
[393845404,1763039432418,-500.0,0.00017973,2]
[393845405,1763039432428,-500.0,0.00017973,2]
[393845406,1763039432437,-500.0,0.00017973,2]
[393845407,1763039432447,-500.0,0.00017973,2]